bitfinex-derivatives/quotes_ETHF0:USTF0_20240923
["timestamp","ask_amount","ask_price","bid_price","bid_amount"]
[1727081376824,1.12231,2645.6,2645.5,0.37801]
[1727081377018,1.12231,2645.6,2645.5,1.36502809]
[1727081377419,1.12231,2645.6,2645.4,2.31503809]
[1727081377734,4.127,2645.9,2645.8,0.37797]
[1727081378023,4.15258,2646.3,2645.9,0.37795]
[1727081378024,0.74914,2646.0,2645.9,0.37795]
[1727081378226,0.74914,2646.0,2645.9,0.76845]
[1727081378227,0.3712,2646.0,2645.9,0.76845]
[1727081379217,0.74914,2646.0,2645.9,0.76845]
[1727081380818,0.37796,2645.9,2645.8,3.58576]
[1727081381023,1.10856,2645.9,2645.8,3.58576]
[1727081381227,0.7306,2645.9,2645.8,3.58576]
[1727081382919,12.40471,2645.9,2645.1,0.365]
[1727081383120,0.95,2645.6,2645.1,0.365]
[1727081383326,0.37803,2645.4,2645.3,0.37804]
[1727081384028,0.74362,2645.5,2645.3,0.37804]
[1727081384232,0.37803,2645.4,2645.3,0.37804]
[1727081385621,0.74362,2645.5,2645.3,0.37804]
[1727081386521,0.37803,2645.4,2645.3,0.37804]
[1727081386720,0.3656,2645.5,2645.2,1.32805]
[1727081386920,0.37804,2645.4,2645.3,0.37804]
[1727081387824,0.74362,2645.5,2645.3,0.37804]
[1727081388229,0.37803,2645.4,2645.3,0.37804]
[1727081388934,0.74362,2645.5,2645.3,0.37804]
[1727081389631,0.37803,2645.4,2645.3,0.37804]
[1727081389927,0.37803,2645.4,2645.3,1.36409975]
[1727081390125,0.37803,2645.4,2645.3,0.98605975]
[1727081390628,0.37803,2645.4,2645.3,1.36409975]
[1727081391526,0.37803,2645.4,2645.3,2.70115488]
[1727081391725,0.37803,2645.4,2645.3,2.32311488]
[1727081391922,0.74733,2645.4,2645.3,2.32312737]
[1727081392525,0.37804,2645.3,2645.2,0.98605975]
[1727081392725,0.37806,2645.2,2645.1,0.98605975]
[1727081393539,0.37806,2645.2,2645.1,2.32386041]
[1727081394338,0.37806,2645.2,2645.1,2.32399078]
[1727081394831,0.37806,2645.2,2645.1,1.33793103]
[1727081395034,0.37806,2645.2,2645.1,2.32584977]
[1727081395239,0.37806,2645.2,2645.1,0.98791874]
[1727081395740,0.37807,2645.1,2645.0,0.98791874]
[1727081395932,0.76657,2645.1,2645.0,0.98791874]
[1727081396628,1.71176,2645.1,2645.0,0.98791874]
[1727081397440,0.37809,2645.0,2644.9,1.37491874]
[1727081397740,0.74689,2645.0,2644.9,3.20434708]
[1727081397936,0.76658,2645.1,2644.9,3.58244708]
[1727081398128,0.76658,2645.1,2645.0,1.33806558]
[1727081398334,0.76658,2645.1,2645.0,2.32602641]
[1727081398634,1.67924,2645.3,2645.0,2.32602641]
[1727081398635,0.7341,2645.3,2645.0,2.28806558]
[1727081398837,1.1085,2645.3,2645.1,1.74263302]
[1727081399037,1.48655,2645.3,2645.1,2.12069302]
[1727081399240,1.48655,2645.3,2645.2,29.7]
[1727081400138,0.7432,2645.3,2645.2,30.07806]
[1727081400448,0.95,2645.7,2645.2,35.41793302]
[1727081400449,0.37802,2645.5,2645.2,35.41793302]
[1727081400634,0.3744,2645.6,2645.5,0.37801]
[1727081400838,0.75619,2645.7,2645.5,2.31593302]
[1727081401032,0.3782,2645.7,2645.6,0.7682]
[1727081401238,0.75619,2645.7,2645.6,0.3902]
[1727081401443,0.75619,2645.7,2645.6,0.7547]
[1727081401642,0.75237,2645.8,2645.6,2.12062302]
[1727081401943,0.37797,2645.8,2645.6,2.12062302]
[1727081402149,3.2078,2645.9,2645.7,1.72098]
[1727081402150,3.96216,2645.9,2645.7,1.72098]
[1727081402442,3.96216,2645.9,2645.7,0.393]
[1727081402443,0.37797,2645.8,2645.7,0.393]
[1727081403040,1.14607,2645.8,2645.7,0.393]
[1727081403246,0.3764,2645.9,2645.7,2.33093302]
[1727081403555,3.2078,2646.2,2646.1,0.37793]
[1727081403740,3.2078,2646.2,2646.1,2.31513713]
[1727081403941,3.2078,2646.2,2646.1,3.65205844]
[1727081404242,3.2078,2646.2,2646.1,2.31465682]
[1727081404446,3.2078,2646.2,2646.1,3.45745682]
[1727081404948,3.2078,2646.2,2646.1,2.47073]
[1727081405339,0.3764,2646.6,2646.2,0.37791]
[1727081405546,0.3764,2646.6,2646.4,0.95]
[1727081405744,0.37785,2646.7,2646.5,0.3758]
[1727081405936,0.76772,2646.9,2646.6,0.37785]
[1727081406137,3.2078,2646.8,2646.7,0.95]
[1727081406340,3.2078,2646.8,2646.7,30.65]
[1727081406839,3.2078,2646.8,2646.7,0.37784]
[1727081407042,3.2078,2646.8,2646.7,1.32784]
[1727081407247,3.2078,2646.8,2646.7,0.95]
[1727081407546,0.3899,2646.9,2646.7,0.95]
[1727081407754,0.3899,2646.9,2646.8,0.37783]
[1727081408344,0.3899,2646.9,2646.7,30.65]
[1727081408345,0.76098,2647.2,2646.9,0.37781]
[1727081408656,1.14218,2647.2,2646.9,0.37781]
[1727081409353,0.7644,2647.2,2646.7,29.7]
[1727081409559,0.37781,2647.0,2646.7,0.37783]
[1727081410646,0.37781,2646.9,2646.7,0.37783]
[1727081411246,0.64221,2647.2,2646.7,0.37783]
[1727081411445,0.37781,2646.9,2646.7,0.37783]
[1727081411651,0.37783,2646.8,2646.6,30.44055]
[1727081412255,0.37782,2646.9,2646.6,30.44055]
[1727081412455,0.37783,2646.8,2646.6,30.44055]
[1727081412751,1.58668,2647.2,2646.7,0.37784]
[1727081412752,0.37782,2646.9,2646.7,0.37784]
[1727081413153,0.37782,2646.9,2646.8,0.37783]
[1727081413355,4.79448,2647.2,2646.7,0.37784]
[1727081413854,0.37781,2646.9,2646.7,0.37784]
[1727081414247,0.3812,2647.2,2646.8,5.8384]
[1727081414447,0.3812,2647.2,2646.7,3.6]
[1727081414647,0.37779,2647.1,2646.9,0.37781]
[1727081414850,0.37779,2647.1,2647.0,0.7477]
[1727081415254,0.37778,2647.2,2647.0,0.7477]
[1727081416161,0.2533,2647.4,2647.0,0.3699]
[1727081416162,0.37777,2647.3,2647.0,0.3699]
[1727081416454,0.2533,2647.4,2647.2,0.37777]
[1727081416758,0.2533,2647.4,2647.2,0.37776]
[1727081416759,0.37775,2647.4,2647.2,0.37776]
[1727081417455,3.2078,2647.5,2647.1,0.37778]
[1727081417456,0.37776,2647.3,2647.1,0.37778]
[1727081418554,0.37776,2647.3,2647.2,0.37777]
[1727081418962,0.37775,2647.4,2647.3,0.37776]
[1727081419254,0.37775,2647.4,2647.2,0.37776]
[1727081419460,0.37776,2647.3,2647.2,0.37776]
[1727081421153,0.37775,2647.4,2647.3,0.37775]
[1727081421657,0.37775,2647.4,2647.2,0.37776]
[1727081422451,3.2078,2647.5,2647.3,0.37775]
[1727081422656,3.2078,2647.5,2647.2,0.37776]
[1727081422657,0.37776,2647.3,2647.2,0.37776]
[1727081422959,0.94447,2647.1,2646.4,3.2078]
[1727081423166,3.2078,2647.1,2646.6,0.3863]
[1727081423463,0.37779,2647.1,2647.0,0.3778]
[1727081423863,0.7542,2647.2,2646.9,0.37781]
[1727081424057,0.37779,2647.1,2646.9,0.37781]
[1727081424254,0.37779,2647.1,2647.0,0.7641]
[1727081425560,0.37779,2647.1,2647.0,0.3863]
[1727081426463,0.37781,2647.0,2646.8,0.37783]
[1727081426665,0.37781,2647.0,2646.9,0.3886]
[1727081426865,0.94447,2647.1,2646.7,3.2078]
[1727081427060,1.33036,2646.9,2646.5,0.3697]
[1727081427261,0.37786,2646.6,2646.5,0.3697]
[1727081428154,0.37787,2646.5,2646.4,3.5964]
[1727081429562,0.73865,2646.7,2646.5,0.37786]
[1727081429766,0.73865,2646.7,2646.4,5.6564]
[1727081429767,0.37786,2646.6,2646.4,5.6564]
[1727081430058,0.37787,2646.5,2646.4,5.6564]
[1727081430572,0.37787,2646.6,2646.4,6.03429]
[1727081431682,0.37785,2646.7,2646.5,0.37787]
[1727081431855,0.37785,2646.7,2646.4,5.6564]
[1727081432054,0.3865,2646.8,2646.4,5.6564]
[1727081432365,0.37785,2646.7,2646.5,0.37786]
[1727081432564,0.76434,2646.8,2646.6,0.37785]
[1727081432765,0.3865,2646.8,2646.5,0.37787]
[1727081432960,0.37786,2646.6,2646.4,5.6564]
[1727081433165,0.3865,2646.8,2646.5,0.37786]
[1727081433166,0.37785,2646.7,2646.5,0.37786]
[1727081433362,0.26435,2646.8,2646.5,0.37786]
[1727081433769,0.26435,2646.8,2646.4,6.03428]
[1727081433962,0.37786,2646.6,2646.4,6.03428]
[1727081434164,0.37785,2646.7,2646.5,0.37787]
[1727081434466,0.37784,2646.7,2646.5,0.37787]
[1727081435055,1.2082,2646.9,2646.5,0.37787]
[1727081435259,0.37785,2646.7,2646.5,0.37787]
[1727081436661,0.37786,2646.6,2646.5,0.37787]
[1727081437071,0.37786,2646.6,2646.4,5.6564]
[1727081437072,0.37786,2646.6,2646.4,6.03428]
[1727081437268,1.32261,2646.4,2646.2,0.3635]
[1727081437467,0.94476,2646.3,2645.7,2.06]
[1727081437670,0.37796,2645.9,2645.8,0.3798]
[1727081437866,1.32286,2645.9,2645.8,0.3798]
[1727081438066,1.32286,2645.9,2645.6,0.3891]
[1727081438067,0.37799,2645.7,2645.6,0.3891]
[1727081438270,0.37798,2645.8,2645.6,0.76709]
[1727081438467,0.37796,2645.9,2645.7,29.7]
[1727081438771,0.7691,2646.0,2645.7,0.37798]
[1727081438976,0.37797,2645.8,2645.6,0.76709]
[1727081439271,0.37797,2645.8,2645.6,30.46709]
[1727081440577,0.3883,2646.0,2645.6,30.0891]
[1727081440781,0.37795,2646.0,2645.8,0.37797]
[1727081441076,0.37794,2646.1,2645.9,0.37796]
[1727081441268,0.37794,2646.1,2646.0,0.3779]
[1727081442074,0.37792,2646.2,2646.0,0.75584]
[1727081442266,0.37791,2646.2,2646.1,0.3674]
[1727081443173,0.37793,2646.1,2646.0,0.3779]
[1727081443480,0.94483,2646.1,2645.7,3.95319]
[1727081443772,0.75895,2646.0,2645.8,0.37797]
[1727081443964,0.75895,2646.0,2645.8,0.75587]
[1727081444488,0.381,2646.0,2645.8,0.75587]
[1727081444665,0.381,2646.0,2645.9,0.37796]
[1727081444666,0.37795,2646.0,2645.9,0.37796]
[1727081445070,0.37795,2646.0,2645.8,0.75586]
[1727081445777,0.37794,2646.1,2645.9,0.37795]
[1727081448473,0.37794,2646.1,2645.9,0.74145]
[1727081448873,0.37794,2646.0,2645.9,0.74145]
[1727081449177,0.37794,2646.0,2645.9,0.37795]
[1727081449681,0.37794,2646.1,2646.0,0.37794]
[1727081449978,0.37794,2646.1,2645.9,0.37795]
[1727081451278,1.32998,2646.3,2645.9,0.37795]
[1727081451279,0.37794,2646.0,2645.9,0.37795]
[1727081451779,0.37794,2646.1,2646.0,0.37794]
[1727081451972,0.37794,2646.1,2645.9,0.37795]
[1727081452880,1.32998,2646.3,2645.9,0.37795]
[1727081452881,0.37794,2646.0,2645.9,0.37795]
[1727081453089,0.37796,2645.9,2645.8,0.3779]
[1727081453271,1.11916,2645.9,2645.5,1.36472682]
[1727081453472,0.378,2645.6,2645.5,1.35022682]
[1727081453674,0.378,2645.6,2645.5,31.42823682]
[1727081453883,0.378,2645.6,2645.5,30.44151]
[1727081454085,0.378,2645.6,2645.5,30.0635]
[1727081454576,0.3724,2645.8,2645.5,33.8435]
[1727081454778,0.7412,2645.9,2645.6,0.37799]
[1727081454779,0.37799,2645.7,2645.6,0.37799]
[1727081454972,0.37798,2645.8,2645.6,0.37799]
[1727081455172,0.378,2645.6,2645.5,31.05022682]
[1727081455381,0.378,2645.7,2645.5,30.44151]
[1727081455679,0.378,2645.6,2645.5,30.44151]
[1727081456476,0.378,2645.6,2645.5,30.0635]
[1727081459277,0.378,2645.6,2645.5,0.3635]
[1727081463186,0.7412,2645.9,2645.5,0.3635]
[1727081463375,0.37799,2645.7,2645.5,0.74151]
[1727081463978,0.378,2645.6,2645.5,0.3635]
[1727081464384,0.378,2645.6,2645.5,0.74151]
[1727081464679,0.378,2645.6,2645.5,0.3635]
[1727081465077,0.378,2645.7,2645.5,0.74151]
[1727081465481,0.378,2645.6,2645.5,0.74151]
[1727081465879,0.378,2645.6,2645.5,0.3635]
[1727081466582,0.378,2645.6,2645.5,0.74151]
[1727081466888,0.378,2645.6,2645.5,0.3635]
[1727081468091,0.378,2645.7,2645.5,0.74151]
[1727081468586,0.37798,2645.8,2645.6,0.378]
[1727081468890,0.37793,2646.1,2645.9,0.37795]
[1727081469082,0.37793,2646.1,2646.0,0.3624]
[1727081469677,0.74893,2646.1,2646.0,0.3624]
[1727081471687,0.37793,2646.1,2646.0,0.74034]
[1727081472380,0.37793,2646.1,2646.0,0.3624]
[1727081472694,0.94488,2646.0,2645.6,0.74719]
[1727081472884,2.05648,2646.0,2645.6,1.14019]
[1727081473095,2.06,2646.1,2645.9,0.37796]
[1727081473280,3.00474,2646.4,2646.0,0.393]
[1727081474093,0.37794,2646.1,2646.0,0.393]
[1727081475886,0.37794,2646.1,2646.0,0.7529]
[1727081477982,0.37794,2646.1,2646.0,1.13084]
[1727081478588,0.37794,2646.1,2646.0,0.7529]
[1727081480700,0.37794,2646.1,2646.0,1.13084]
[1727081481296,0.37794,2646.1,2646.0,2.11756682]
[1727081482396,0.37794,2646.1,2646.0,2.47242883]
[1727081482801,1.32794,2646.1,2646.0,1.34158883]
[1727081483095,2.27277,2646.1,2646.0,0.98800223]
[1727081483803,1.3228,2646.0,2645.9,0.98800223]
[1727081484000,0.37797,2645.8,2645.7,0.98800223]
[1727081484889,5.10291,2645.8,2645.7,0.98800223]
[1727081485400,0.37799,2645.7,2645.6,0.98800223]
[1727081485700,0.37799,2645.7,2645.6,2.33055766]
[1727081486197,1.32296,2645.7,2645.6,2.33055766]
[1727081486502,1.32296,2645.7,2645.6,2.82164506]
[1727081486503,0.37799,2645.7,2645.6,2.82164506]
[1727081487996,0.37799,2645.7,2645.6,2.82129344]
[1727081490509,1.32296,2645.7,2645.6,2.82129344]
[1727081490821,0.37799,2645.7,2645.6,2.82129344]
[1727081491517,5.10296,2645.7,2645.6,0.98851088]
[1727081491719,0.378,2645.6,2645.5,0.98851088]
[1727081491919,0.37801,2645.5,2645.4,31.08778065]
[1727081493221,1.13361,2645.5,2645.4,31.08778065]
[1727081495313,1.13361,2645.5,2645.4,30.0991]
[1727081495906,0.73851,2645.5,2645.4,30.0991]
[1727081496806,0.73851,2645.5,2645.4,29.7]
[1727081497518,3.2078,2646.1,2645.4,33.48]
[1727081497709,0.37796,2645.9,2645.6,0.98868065]
[1727081498015,0.37796,2645.9,2645.8,0.37797]
[1727081498217,0.37796,2645.9,2645.7,2.50256065]
[1727081498512,0.37793,2646.1,2646.0,0.37793]
[1727081499515,0.37795,2646.0,2645.9,0.37795]
[1727081499719,0.37794,2646.1,2646.0,0.37794]
[1727081500422,0.37793,2646.1,2645.8,0.98868065]
[1727081500724,0.37792,2646.2,2646.1,0.37793]
[1727081502428,0.37792,2646.2,2646.0,1.36661065]
[1727081503323,0.37792,2646.2,2646.1,0.37373]
[1727081503713,2.06,2646.3,2646.1,0.37793]
[1727081505423,0.37791,2646.2,2646.0,1.36661065]
[1727081506125,0.37791,2646.2,2646.1,0.37793]
[1727081506423,1.32791,2646.2,2646.1,0.37793]
[1727081509228,0.37793,2646.1,2646.0,0.98868065]
[1727081509419,1.32793,2646.1,2646.0,0.98868065]
[1727081509832,2.27276,2646.1,2646.0,0.98868065]
[1727081510321,2.27276,2646.1,2645.8,5.45865963]
[1727081510322,0.37796,2645.9,2645.8,3.97957]
[1727081510527,0.94494,2645.8,2645.4,1.36670065]
[1727081510825,0.95,2645.6,2645.3,4.97598065]
[1727081511016,0.95,2645.6,2645.5,0.37801]
[1727081511220,0.37799,2645.7,2645.6,0.378]
[1727081511815,0.3818,2646.0,2645.4,0.95]
[1727081512018,0.37796,2645.9,2645.8,0.37797]
[1727081512430,0.37795,2646.0,2645.9,0.37795]
[1727081512729,4.07594,2646.1,2645.9,0.37795]
[1727081512914,0.37794,2646.1,2646.0,0.3705]
[1727081514122,0.37794,2646.1,2646.0,0.74844]
[1727081514722,0.37794,2646.1,2646.0,0.3705]
[1727081518322,0.74579,2646.4,2646.3,0.3779]
[1727081518653,0.37785,2646.7,2646.3,5.12203511]
[1727081518930,0.37785,2646.7,2646.2,1.47908963]
[1727081518931,0.37785,2646.7,2646.6,0.37786]
[1727081519132,1.115,2647.1,2646.6,4.7643174]
[1727081519333,0.37781,2647.0,2646.8,0.37783]
[1727081519522,0.37781,2647.0,2646.9,0.37781]
[1727081520228,0.37781,2647.0,2646.8,0.37782]
[1727081520433,0.37781,2647.0,2646.7,31.0667174]
[1727081520434,1.49279,2647.1,2646.7,31.0667174]
[1727081520634,1.11809,2647.1,2646.9,0.37781]
[1727081520831,0.3778,2647.0,2646.8,1.3637374]
[1727081521032,0.3778,2647.0,2646.7,31.0667174]
[1727081521330,0.37781,2646.9,2646.7,31.4445574]
[1727081521534,0.37781,2647.0,2646.8,0.37782]
[1727081522026,3.1781,2647.1,2646.7,30.0808]
[1727081522224,0.3778,2647.0,2646.8,0.37782]
[1727081523026,0.3778,2647.0,2646.7,30.0808]
[1727081523027,0.3805,2647.3,2646.7,31.0667174]
[1727081523231,0.76948,2647.2,2647.0,0.37779]
[1727081523627,0.37779,2647.1,2646.9,0.37781]
[1727081524425,0.37779,2647.1,2646.7,31.0667174]
[1727081524426,0.3917,2647.2,2646.7,31.0667174]
[1727081524735,0.3917,2647.2,2646.6,3.58566]
[1727081524736,0.37783,2646.8,2646.6,3.58566]
[1727081525034,0.37783,2646.8,2646.5,32.9078]
[1727081525222,0.37783,2646.8,2646.5,29.7]
[1727081525624,0.37783,2646.8,2646.6,0.37785]
[1727081526138,1.93784,2647.0,2646.6,0.37786]
[1727081526328,0.37784,2646.8,2646.6,0.37786]
[1727081527030,0.37785,2646.7,2646.5,30.07787]
[1727081527340,0.37787,2646.5,2646.4,0.365]
[1727081527833,0.37789,2646.4,2646.3,0.3783]
[1727081528425,0.37791,2646.3,2646.1,1.3638374]
[1727081528641,0.3766,2646.5,2646.0,3.21600703]
[1727081528642,2.06,2646.4,2646.0,3.21600703]
[1727081528939,0.37793,2646.1,2646.0,0.3601]
[1727081529532,0.94476,2646.3,2646.0,0.3601]
[1727081529533,0.82269,2646.3,2646.0,0.3601]
[1727081529748,0.37793,2646.1,2646.0,0.3601]
[1727081529939,0.37793,2646.1,2646.0,0.73]
[1727081530138,0.37793,2646.1,2646.0,1.10794]
[1727081530340,0.37792,2646.2,2646.0,1.10794]
[1727081530842,0.94472,2646.4,2646.0,0.73]
[1727081531139,0.37793,2646.1,2646.0,0.73]
[1727081532938,3.46232,2646.5,2646.0,1.10794]
[1727081532939,0.37792,2646.2,2646.0,1.10794]
[1727081533440,0.37793,2646.1,2646.0,0.73]
[1727081536744,0.37793,2646.1,2646.0,0.3699]
[1727081537249,0.37796,2645.9,2645.8,29.7]
[1727081537445,0.37796,2645.9,2645.8,30.44827]
[1727081537747,0.3623,2646.0,2645.8,30.44827]
[1727081538252,0.74025,2646.0,2645.8,30.44827]
[1727081538637,0.37796,2645.9,2645.8,30.44827]
[1727081539650,0.74025,2646.0,2645.8,30.44827]
[1727081540039,0.74025,2646.0,2645.9,0.37796]
[1727081540235,2.06,2646.4,2645.8,30.44827]
[1727081540551,0.37795,2646.0,2645.8,31.4341874]
[1727081541251,0.37796,2645.9,2645.8,31.4341874]
[1727081541441,0.37796,2645.9,2645.8,32.77427985]
[1727081542341,0.37796,2645.9,2645.8,31.78836245]
[1727081543347,0.37796,2645.9,2645.8,33.26745208]
[1727081543545,0.37796,2645.9,2645.8,33.26772269]
[1727081545646,0.94479,2646.2,2645.9,0.37795]
[1727081545844,0.37794,2646.1,2645.9,1.36298132]
[1727081546344,0.37794,2646.0,2645.9,0.98503132]
[1727081547545,0.37796,2645.9,2645.8,30.44827]
[1727081547939,0.94484,2646.1,2645.8,30.44827]
[1727081548550,0.37796,2646.0,2645.8,30.44827]
[1727081548849,0.37796,2645.9,2645.8,30.44827]
[1727081549753,0.37795,2646.0,2645.9,0.37795]
[1727081549953,0.37793,2646.1,2646.0,0.37794]
[1727081550447,0.37794,2646.0,2645.9,0.37795]
[1727081552165,0.37793,2646.1,2645.9,0.37795]
[1727081552551,0.37795,2646.0,2645.9,0.37796]
[1727081552754,0.37796,2645.9,2645.8,30.44826]
[1727081553053,0.37795,2646.0,2645.8,30.44826]
[1727081553250,0.37795,2646.0,2645.9,0.37796]
[1727081554249,1.89481,2646.2,2645.8,30.0703]
[1727081554250,0.95,2646.2,2646.1,0.37793]
[1727081554455,0.37791,2646.3,2646.2,0.37791]
[1727081554754,0.37791,2646.2,2646.1,0.37792]
[1727081555054,0.37791,2646.2,2646.1,0.75142]
[1727081555455,0.37791,2646.3,2646.2,0.37791]
[1727081555857,0.37791,2646.2,2646.1,0.75142]
[1727081558354,0.3779,2646.3,2646.2,0.37791]
[1727081558560,0.37791,2646.2,2646.1,1.73645132]
[1727081559450,0.37791,2646.2,2646.1,0.75142]
[1727081563555,0.37791,2646.2,2646.1,0.3735]
[1727081563857,0.37791,2646.2,2646.1,0.75143]
[1727081564061,0.37793,2646.1,2646.0,0.37794]
[1727081565451,0.37792,2646.2,2646.1,0.37793]
[1727081565656,0.37792,2646.2,2645.8,33.2924]
[1727081565657,0.37794,2646.1,2646.0,0.37794]
[1727081567066,3.00481,2646.2,2645.8,33.2924]
[1727081567467,0.37796,2645.9,2645.8,33.67036]
[1727081568470,0.37796,2645.9,2645.8,33.2924]
[1727081569768,0.37796,2645.9,2645.8,34.63432465]
[1727081569964,0.37796,2645.9,2645.8,35.00872465]
[1727081570166,0.37795,2646.0,2645.8,39.67311845]
[1727081570361,0.37795,2646.0,2645.9,1.34192465]
[1727081570858,0.37795,2646.0,2645.9,1.71988465]
[1727081571266,0.37795,2646.0,2645.9,3.32128242]
[1727081571764,0.37795,2646.0,2645.9,3.69924242]
[1727081572275,0.37795,2646.0,2645.9,6.38528507]
[1727081572464,3.00481,2646.2,2645.9,6.00846256]
[1727081572662,0.37793,2646.1,2646.0,1.34303493]
[1727081573260,0.37793,2646.1,2646.0,3.3223927]
[1727081573566,0.37793,2646.1,2646.0,3.32297235]
[1727081574365,0.37793,2646.1,2646.0,6.01110017]
[1727081577464,0.37793,2646.1,2646.0,6.00968954]
[1727081579872,0.37793,2646.1,2646.0,6.38762954]
[1727081580071,0.37793,2646.1,2646.0,6.00968954]
[1727081580274,0.37793,2646.1,2646.0,6.00974571]
[1727081581069,0.37793,2646.1,2646.0,6.00996392]
[1727081582878,0.37793,2646.1,2646.0,3.32289315]
[1727081584779,0.37794,2646.0,2645.9,1.74412821]
[1727081585079,0.37794,2646.0,2645.9,2.27884471]
[1727081586278,0.37794,2646.0,2645.9,1.90088471]
[1727081586479,5.10714,2646.0,2645.9,0.53472342]
[1727081586784,0.37799,2645.7,2645.6,1.37816821]
[1727081586972,1.32799,2645.7,2645.6,1.37816821]
[1727081587173,3.96851,2646.3,2645.7,0.94497]
[1727081587379,1.32789,2646.4,2646.2,0.3779]
[1727081587677,1.32789,2646.4,2646.3,0.7683]
[1727081588678,2.27261,2646.4,2646.3,0.7683]
[1727081589579,1.32789,2646.4,2646.3,0.7683]
[1727081590374,2.65171,2646.4,2646.3,0.374]
[1727081592879,2.65171,2646.4,2646.3,2.70989814]
[1727081594075,2.65171,2646.4,2646.3,2.33589814]
[1727081594272,2.65171,2646.4,2646.0,1.97935777]
[1727081594273,0.94483,2646.1,2646.0,0.98670611]
[1727081594482,2.27276,2646.1,2646.0,0.98670611]
[1727081594687,6.05196,2646.1,2646.0,0.98670611]
[1727081595187,8.88183,2646.1,2645.9,0.98711492]
[1727081595382,8.88183,2646.1,2645.8,0.98711492]
[1727081595383,1.32286,2645.9,2645.8,0.98711492]
[1727081595879,5.10206,2645.9,2645.8,0.98711492]
[1727081596270,3.38286,2645.9,2645.8,0.98711492]
[1727081597173,0.37797,2645.8,2645.7,0.98711492]
[1727081597375,0.37797,2645.8,2645.7,2.82950277]
[1727081597574,2.06,2645.9,2645.7,2.82398154]
[1727081597783,2.06,2645.9,2645.8,0.98680925]
[1727081597784,2.43797,2645.9,2645.8,0.98680925]
[1727081597984,2.43797,2645.9,2645.7,1.85814232]
[1727081598181,2.43797,2645.9,2645.8,0.98683283]
[1727081601281,0.37797,2645.8,2645.7,0.98683283]
[1727081601487,0.75697,2645.8,2645.7,0.98683283]
[1727081602384,2.43797,2645.9,2645.7,1.36482283]
[1727081602889,0.37797,2645.8,2645.7,0.98683283]
[1727081605097,0.37797,2645.8,2645.7,1.36476116]
[1727081605392,2.43797,2645.9,2645.7,1.85814232]
[1727081605582,2.43797,2645.9,2645.8,0.98670555]
[1727081606087,0.37797,2645.8,2645.7,1.48015232]
[1727081606590,0.37799,2645.7,2645.6,1.84195232]
[1727081606791,0.37799,2645.7,2645.6,0.7398]
[1727081607095,0.37799,2645.7,2645.6,1.48015232]
[1727081607398,0.37799,2645.7,2645.6,0.98671311]
[1727081607591,0.37799,2645.7,2645.6,1.36621311]
[1727081608093,0.37799,2645.7,2645.6,1.75471311]
[1727081610297,0.37797,2645.9,2645.6,1.75471311]
[1727081610599,0.37797,2645.9,2645.7,1.36490277]
[1727081611095,0.37797,2645.8,2645.7,1.36490277]
[1727081611597,0.37797,2645.8,2645.6,2.24815232]
[1727081611793,0.37797,2645.8,2645.7,0.98735501]
[1727081612194,0.37797,2645.8,2645.7,0.98744534]
[1727081612995,0.37797,2645.8,2645.7,1.36543534]
[1727081613195,0.37797,2645.8,2645.7,0.98744534]
[1727081613896,0.37799,2645.7,2645.6,1.75544534]
[1727081614103,0.37799,2645.7,2645.6,1.146]
[1727081614296,0.37799,2645.7,2645.6,1.75575014]
[1727081615196,0.37798,2645.8,2645.6,2.13375014]
[1727081615702,0.37798,2645.8,2645.7,0.98775014]
[1727081616507,1.32798,2645.8,2645.7,0.98775014]
[1727081617598,1.32798,2645.8,2645.6,2.13375014]
[1727081618102,0.37799,2645.7,2645.6,2.13375014]
[1727081618297,0.37799,2645.7,2645.6,2.7170628]
[1727081618503,0.37799,2645.7,2645.6,1.72931266]
[1727081618806,0.37799,2645.7,2645.6,1.36796684]
[1727081620104,0.37799,2645.7,2645.6,2.71802475]
[1727081620309,0.37799,2645.7,2645.6,1.36796684]
[1727081620810,0.37799,2645.7,2645.6,2.71801845]
[1727081622513,0.37799,2645.7,2645.6,3.58769393]
[1727081622704,1.32798,2645.8,2645.6,3.58769393]
[1727081623009,1.32798,2645.8,2645.7,0.98900553]
[1727081623198,1.32798,2645.8,2645.7,2.33974528]
[1727081623402,1.32798,2645.8,2645.7,0.98900553]
[1727081624710,0.37798,2645.8,2645.7,2.83096845]
[1727081625013,0.37798,2645.8,2645.7,1.35081613]
[1727081625509,0.37798,2645.8,2645.7,2.33990513]
[1727081626014,0.37798,2645.8,2645.7,0.989089]
[1727081626413,0.37798,2645.8,2645.7,2.34006748]
[1727081626612,0.37798,2645.8,2645.7,0.989089]
[1727081628312,0.37798,2645.8,2645.7,1.3513395]
[1727081628511,0.37798,2645.8,2645.7,2.83149182]
[1727081628709,0.37798,2645.8,2645.7,1.3513395]
[1727081628911,0.37799,2645.7,2645.6,2.23765232]
[1727081629110,0.94486,2646.1,2645.6,3.21109353]
[1727081629309,0.3866,2646.2,2645.9,0.98961233]
[1727081629505,0.37793,2646.1,2646.0,2.73194625]
[1727081629712,0.37793,2646.1,2646.0,34.03311624]
[1727081630016,1.71452,2646.2,2646.0,34.03311624]
[1727081630202,1.70931,2646.2,2646.1,0.9891662]
[1727081630405,1.70931,2646.2,2646.0,1.48015232]
[1727081630406,1.32276,2646.1,2646.0,0.9891662]
[1727081630603,1.32276,2646.1,2645.8,2.24562232]
[1727081630604,0.37794,2646.0,2645.9,0.9891662]
[1727081630815,0.37794,2646.0,2645.9,30.6891662]
[1727081631314,0.37794,2646.0,2645.9,0.9891662]
[1727081631915,0.37794,2646.0,2645.9,2.34015477]
[1727081632121,0.37794,2646.0,2645.9,0.9891662]